Cogmind - Beta 10.2 @@@ ROGUE MODE // 2020.11.17 @ 20:45:12 // Halloween2020/ForbiddenLore Player: IAMCRAIG Result: Destroyed by D-53 Grenadier with Mini Grenade Launcher Performance ------------- Evolutions (0) 0 Regions Visited (4) 800 Robots Destroyed (16) 80 Value Destroyed (356) 356 Prototype IDs (0) 0 Alien Tech Used (0) 0 Bonus (8) 8 TOTAL SCORE: 1244 Bonus ------- High Alert Combat Kills 8 Cogmind --------- Core Integrity 0/250 Matter 127/300 Energy 43/100 System Corruption 0% Temperature Cool (0) Movement Treading (180) Ox1 Location -9/Mines Parts ------- > --- POWER (1) -------- (None) > --- PROPULSION (2) --- Improved Treads Improved Treads > --- UTILITY (2) ------ Humpback > --- WEAPON (2) ------- Rocket Launcher > --- INVENTORY (24) --- Improved Treads High-capacity Storage Unit High-capacity Storage Unit High-capacity Storage Unit Humpback Humpback Humpback Humpback Humpback Humpback Humpback High-capacity Battery (400) Large Matter Pod (150) Improved Sensor Array Makeshift Sword Peak State ------------ > --- POWER ------------ Light Ion Engine > --- PROPULSION ------- Improved Treads Wheel > --- UTILITY ---------- Improved Heat Sink High-capacity Storage Unit > --- WEAPON ----------- EM Pulse Gun Makeshift Sword > --- INVENTORY -------- Light Ion Engine Improved Treads Improved Treads Improved Treads High-capacity Storage Unit High-capacity Storage Unit High-capacity Battery Large Matter Pod Improved Sensor Array Light Armor Plating EM Pulse Gun Rocket Launcher [Rating: 14] Favorites ----------- Power Ion Engine Engine Ion Engine Propulsion Wheel Treads Improved Treads Wheel Wheel Utility High-capacity Storage Unit Device Improved Heat Sink Storage High-capacity Storage Unit Processor Signal Interpreter Weapon EM Pulse Gun Energy Gun EM Pulse Gun Launcher Rocket Launcher Slashing Weapon Makeshift Sword Build | -11 -10 -10 -10 -9 ------- Run | Scr Mat Min Exi Min Slots Evolved . | . . . . . Power . | . . . . . Propulsion . | . . . . . Utility . | . . . . . Weapon . | . . . . . Parts Attached 41 | 9 20 5 2 5 Power 3 | 1 1 1 . . Engine 3 | 1 1 1 . . Core . | . . . . . Reactor . | . . . . . Propulsion 15 | 4 8 1 1 1 Treads 6 | 1 3 . 1 1 Leg . | . . . . . Wheel 9 | 3 5 1 . . Hover . | . . . . . Flight . | . . . . . Utility 12 | 2 8 1 1 . Device 1 | . . 1 . . Storage 10 | 2 7 . 1 . Processor 1 | . 1 . . . Hackware . | . . . . . Protection . | . . . . . Artifact . | . . . . . Weapon 11 | 2 3 2 . 4 Energy Gun 8 | 2 3 1 . 2 Energy Cannon . | . . . . . Ballistic Gun . | . . . . . Ballistic Cannon . | . . . . . Launcher 2 | . . . . 2 Special Weapon . | . . . . . Impact Weapon . | . . . . . Slashing Weapon 1 | . . 1 . . Piercing Weapon . | . . . . . Special Melee Weapon . | . . . . . Unidentified Prototypes . | . . . . . Parts Lost 5 | . . 1 . 4 Power 1 | . . . . 1 Propulsion 1 | . . . . 1 Utility . | . . . . . Weapon 3 | . . 1 . 2 Highest Loss Streak 2 | . . 1 . 2 Average Slot Usage (%) 96 | . 100 99 87 82 Engine 13 | . 14 14 14 11 Treads 10 | . 4 14 14 16 Wheel 17 | . 23 14 14 11 Device 5 | . . 12 2 . Storage 16 | . 21 14 14 14 Processor 2 | . 6 1 . . Energy Gun 23 | . 28 25 14 8 Slashing Weapon 4 | . . 2 14 13 Naked Turns . | . . . . . Heaviest Build 89 | 16 41 42 87 89 Greatest Support 46 | 26 26 23 23 46 Greatest Overweight (x) 8 | . 2 3 8 8 Average Overweight (x) 2 | . . 2 6 7 Largest Inventory Capacity 24 | 8 14 12 24 24 Average Capacity 14 | 6 10 12 21 24 Most Carried 24 | 8 12 12 24 24 Average Carried 13 | 4 10 11 17 23 Final Capacity 24 | 8 12 12 24 24 Final Carried 24 | 8 12 12 24 22 Class Distribution -------------------- 77% | Mutant 22% | Hauler-Mutant Dominant Class ---------------- Mutant | -10/Materials Mutant | -10/Mines Hauler-Mutant | -10/Exiles Hauler-Mutant | -9/Mines Resources | -11 -10 -10 -10 -9 ----------- Run | Scr Mat Min Exi Min Matter Collected 753 | 290 220 213 20 10 Remotely . | . . . . . Salvage Created 549 | 123 291 121 . 14 Parts 30 | 4 17 9 . . Haulers Intercepted 1 | . 1 . . . Recyclers Shooed . | . . . . . Parts Field Recycled . | . . . . . Retrieved Matter . | . . . . . Parts Self-Destructed . | . . . . . Prevented . | . . . . . Kills | -11 -10 -10 -10 -9 ------- Run | Scr Mat Min Exi Min Combat Hostiles Destroyed 19 | . 6 4 . 9 Guns 8 | . 5 3 . . AOE 11 | . 1 1 . 9 Classes Destroyed 9 | 2 5 1 . 1 Worker 1 | . . 1 . . Builder 1 | . 1 . . . Tunneler 1 | 1 . . . . Hauler 1 | . 1 . . . Recycler 1 | 1 . . . . Watcher 1 | . 1 . . . Swarmer 6 | . 3 3 . . Grunt 4 | . 3 1 . . Assembled 9 | . . . . 9 Best Kill Streak 9 | 1 3 3 . 9 Combat Bots Only 9 | . 3 3 . 9 Max Kills in Single Turn 2 | 1 1 1 . 2 Gunslinging . | . . . . . Exploded 2 | . 1 1 . 2 Melee . | . . . . . Uniques/NPCs Destroyed . | . . . . . Combat | -11 -10 -10 -10 -9 -------- Run | Scr Mat Min Exi Min Damage Taken 1038 | . 194 139 . 705 Core 259 | . 82 6 . 171 Absorbed by Shields . | . . . . . Core Remaining (%) 100 | 100 . . . . Volleys Fired 71 | 8 28 20 . 15 Largest 2 | 2 2 2 . 1 Hottest 90 | 90 90 80 . 40 Shots Fired 123 | 16 56 36 . 15 Gun 110 | 16 56 36 . 2 Cannon . | . . . . . Launcher 13 | . . . . 13 Special . | . . . . . Kinetic . | . . . . . Thermal 46 | 16 30 . . . Explosive 13 | . . . . 13 Electromagnetic 64 | . 26 36 . 2 Robot Hit Streak 11 | 11 9 4 . 5 Robot Miss Streak 3 | 1 3 2 . 1 Penetration Max . | . . . . . Secondary Targets 2 | . 2 . . . Max Gunslinging Chain 1 | . 1 . . . Shots Hit Robots 66 | 14 30 11 . 11 Core Hits 42 | 3 12 6 . 21 Critical Hits . | . . . . . Critical Kills . | . . . . . Critical Parts Destroyed . | . . . . . Melee Attacks 5 | . . 3 . 2 Impact . | . . . . . Slashing 5 | . . 3 . 2 Piercing . | . . . . . Sneak Attacks . | . . . . . Combat Hostiles . | . . . . . Follow-up Attacks . | . . . . . Damage Inflicted 1820 | 167 541 238 . 874 Guns 811 | 167 447 174 . 23 Cannons . | . . . . . Explosions 1003 | . 94 58 . 851 Melee . | . . . . . Ramming 6 | . . 6 . . Kinetic . | . . . . . Thermal 585 | 167 315 58 . 45 Explosive 806 | . . . . 806 Electromagnetic 423 | . 226 174 . 23 Impact . | . . . . . Slashing . | . . . . . Piercing . | . . . . . Highest Corruption . | . . . . . Average Corruption . | . . . . . Corruption Purged . | . . . . . Overload Shots . | . . . . . Overflow Damage 113 | . . . . 113 Projectiles . | . . . . . Explosions 113 | . . . . 113 Melee . | . . . . . Knockbacks . | . . . . . Impact . | . . . . . Kinetic . | . . . . . Secondary . | . . . . . Self-Inflicted Damage 99 | . . 20 . 79 Shots 3 | . . 1 . 2 Rammed 1 | . . 1 . . Targets Rammed 1 | . . 1 . . Kicked . | . . . . . Crushed . | . . . . . Highest Temperature 150 | 150 150 88 . 3 Average Temperature 48 | 65 46 37 . 2 Received Heat Transfer 122 | . 72 30 . 20 Siege Activations . | . . . . . Robots Corrupted 1 | . 1 . . . Combat Hostiles . | . . . . . Parts Fried . | . . . . . Impact Corruptions . | . . . . . Robots Melted . | . . . . . Combat Hostiles . | . . . . . Parts Melted 4 | 1 3 . . . Heat Transferred 1252 | 446 706 50 . 50 Parts Sabotaged . | . . . . . Parts Stolen . | . . . . . Parts Stripped . | . . . . . Power Chain Reactions 2 | . 1 1 . . Missiles Intercepted . | . . . . . Alert | -11 -10 -10 -10 -9 ------- Run | Scr Mat Min Exi Min Peak Influence 722 | 10 722 352 . . Initial 247 | . 6 247 . . Average 221 | 4 293 219 . . Maximum Alert Level 3 | . 3 1 . . Low Security (%) 68 | 100 62 65 . 100 Level 1 16 | . 1 34 . . Level 2 10 | . 25 . . . Level 3 4 | . 10 . . . Level 4 . | . . . . . Level 5 . | . . . . . High Security . | . . . . . Max Security . | . . . . . Squads Dispatched 2 | . 2 . . . Investigation 1 | . 1 . . . Extermination . | . . . . . Reinforcement 1 | . 1 . . . Assault . | . . . . . Garrison . | . . . . . Intercept . | . . . . . Construction Impeded . | . . . . . Haulers Reinforced . | . . . . . Stealth | -11 -10 -10 -10 -9 --------- Run | Scr Mat Min Exi Min Distress Signals 1 | . 1 . . . Communications Jammed . | . . . . . Distress Signals . | . . . . . Times Spotted 37 | . 17 6 . 14 Peak Tracking Total 6 | . 3 3 . 6 Tactical Retreats 3 | . 1 1 . 1 Traps | -11 -10 -10 -10 -9 ------- Run | Scr Mat Min Exi Min Traps Triggered 1 | . 1 . . . Indirectly . | . . . . . Trap Hack Attempts . | . . . . . Triggered . | . . . . . Disarmed . | . . . . . Reprogrammed . | . . . . . Reused . | . . . . . Traps Extracted . | . . . . . Installed . | . . . . . Triggered 1 | . . 1 . . Machines | -11 -10 -10 -10 -9 ---------- Run | Scr Mat Min Exi Min Machines Disabled 11 | . . 10 . 1 Max in Single Turn 2 | . . 2 . 1 Machines Sabotaged . | . . . . . Garrisons Compromised . | . . . . . Overloaded Fab Kills . | . . . . . Fab Network Shutdowns . | . . . . . Hacking | -11 -10 -10 -10 -9 --------- Run | Scr Mat Min Exi Min Machines Accessed 10 | . 9 1 . . Terminals 8 | . 7 1 . . Fabricators . | . . . . . Repair Stations . | . . . . . Recycling Units 2 | . 2 . . . Scanalyzers . | . . . . . Garrison Access . | . . . . . Total Hacks 42 | . 39 3 . . Successful 27 | . 26 1 . . Failed 15 | . 13 2 . . Catastrophic 1 | . 1 . . . Database Lockouts . | . . . . . Manual 26 | . 23 3 . . Terminals 31 | . 28 3 . . Fabricators . | . . . . . Repair Stations . | . . . . . Recycling Units 11 | . 11 . . . Scanalyzers . | . . . . . Garrison Access . | . . . . . Terminal Hacks 9 | . 8 1 . . Robot Analysis 2 | . 1 1 . . Emergency Access Points 1 | . 1 . . . Terminal Index 1 | . 1 . . . Alert Level 1 | . 1 . . . Locate Traps 2 | . 2 . . . Zone Layout 2 | . 2 . . . Fabricator Hacks . | . . . . . Repair Station Hacks . | . . . . . Recycling Unit Hacks 4 | . 4 . . . Report Inventory 2 | . 2 . . . Retrieve Components 2 | . 2 . . . Scanalyzer . | . . . . . Garrison Access Hacks . | . . . . . Unauthorized Hacks 14 | . 14 . . . Terminals 11 | . 11 . . . Track 2 | . 2 . . . Botnet 7 | . 7 . . . Disrupt 1 | . 1 . . . Operators 1 | . 1 . . . Fabricators . | . . . . . Repair Stations . | . . . . . Recycling Units 3 | . 3 . . . Monitor 1 | . 1 . . . Reject 2 | . 2 . . . Scanalyzers . | . . . . . Garrison Access . | . . . . . Data Cores Recovered . | . . . . . Used . | . . . . . Hacking Detections 8 | . 7 1 . . Full Trace Events . | . . . . . Feedback Events . | . . . . . Feedback Blocked . | . . . . . Robot Schematics Acquired . | . . . . . Robots Built . | . . . . . Matter . | . . . . . Time . | . . . . . Total Robot Build Rating . | . . . . . Part Schematics Acquired . | . . . . . Parts Built . | . . . . . Matter . | . . . . . Time . | . . . . . Total Part Build Rating . | . . . . . Parts Repaired . | . . . . . Time . | . . . . . Parts Recycled . | . . . . . Recycled Matter . | . . . . . Retrieved Matter . | . . . . . Retrieved Components 10 | . 10 . . . Parts Scanalyzed . | . . . . . Part Schematics Acquired . | . . . . . Parts Damaged . | . . . . . Bothacking | -11 -10 -10 -10 -9 ------------ Run | Scr Mat Min Exi Min Used RIF Installer . | . . . . . Robots Hacked . | . . . . . Non-combat . | . . . . . Combat . | . . . . . Robot Hacks Applied . | . . . . . Relay Couplers Released . | . . . . . Robots Rewired . | . . . . . Allies Hacked . | . . . . . Hacks Repelled . | . . . . . Allies | -11 -10 -10 -10 -9 -------- Run | Scr Mat Min Exi Min Total Allies 1 | . . 1 . . Largest Group 1 | . . 1 1 . Highest-Rated Group 31 | . . 31 31 . Highest-Rated Ally 31 | . . 31 31 . Total Orders . | . . . . . Ally Attacks . | . . . . . Total Damage . | . . . . . Kills . | . . . . . Allies Corrupted . | . . . . . Allies Melted . | . . . . . Intel | -11 -10 -10 -10 -9 ------- Run | Scr Mat Min Exi Min Robot Analysis Total 2 | . 1 1 . . Derelict Logs Recovered 3 | . . 2 . 1 Drone Launches . | . . . . . Drone Recoveries . | . . . . . Exploration | -11 -10 -10 -10 -9 ------------- Run | Scr Mat Min Exi Min Turns Passed 3085 | 93 1051 1159 543 239 Spaces Moved 2044 | 54 755 764 348 123 Core 8 | 8 . . . . Treads 92 | . . 68 16 8 Legs . | . . . . . Wheels 1944 | 46 755 696 332 115 Hover . | . . . . . Flight . | . . . . . Fastest Speed 50 | 50 80 110 110 160 Average Speed 120 | 89 99 123 149 161 Slowest Speed 220 | 100 120 180 220 180 Overloaded Moves . | . . . . . Propulsion Burnouts . | . . . . . Robots Hopped . | . . . . . Cave-ins Triggered . | . . . . . Exploration Rate (%) 58 | 4 87 99 69 33 Regions Visited 4 Branch Regions 3 Pre-discovered Areas 1 | . . 1 . . Known Exits Taken 2 | . 1 1 . . Unknown Exits Taken 2 | 1 . . 1 . Scrap Searched 2 | . . 1 . 1 Spaces Dug 3 | . . 3 . . Terrain Destroyed 92 | . 4 9 . 79 Melee 3 | . . 3 . . Projectile . | . . . . . AOE 89 | . 4 6 . 79 Terrain Rammed . | . . . . . Walls Destroyed . | . . . . . Machines Disabled . | . . . . . Actions | -11 -10 -10 -10 -9 --------- Run | Scr Mat Min Exi Min Total 2566 | 78 1023 947 372 146 Wait 304 | . 157 146 . 1 Move 2040 | 53 754 763 347 123 Hop . | . . . . . Pick Up 55 | 7 27 4 17 . Fast Attach 12 | 8 3 . 1 . Attach 7 | . 3 2 . 2 Detach 2 | 1 . 1 . . Swap 22 | 1 14 3 1 3 Drop 47 | . 37 4 6 . Fire 71 | 8 28 20 . 15 Melee 5 | . . 3 . 2 Ram . | . . . . . Kick . | . . . . . Crush 1 | . . 1 . . Escape Stasis . | . . . . . Rewire . | . . . . . Trap . | . . . . . Miscellaneous . | . . . . . Route ------- -11/Scrapyard -10/Materials (discovered 4 exits: *Mat x3 / *Min) -10/Mines (discovered 3 exits: *Mat x2 / *Exi) -10/Exiles -9/Mines History --------- Turn | Location | Event 13 | -11/Scrapyard | Discovered new exit (range 14) 94 | -11/Scrapyard | Entered Materials 222 | -10/Materials | Discovered new exit (range 7) 313 | -10/Materials | Build established: Mutant 635 | -10/Materials | Discovered new exit (range 15) 930 | -10/Materials | Discovered new exit (range 10) 1099 | -10/Materials | Discovered new exit (range 16) 1135 | -10/Materials | Identified exit to Mines 1145 | -10/Materials | Entered Mines 1175 | -10/Mines | Identified exit to Materials 1175 | -10/Mines | Discovered exit to Materials (range 13) 1186 | -10/Mines | Received a Rocket Launcher from a helpful Derelict 1256 | -10/Mines | Deemed a non-threat by the Exiles lab entrance 1257 | -10/Mines | Discovered new exit (range 5) 1261 | -10/Mines | Identified exit to Exiles 1286 | -10/Mines | A weapon hastily lodged in a ceiling crevice suddenly fell to the ground 1392 | -10/Mines | Joined a pair of Derelicts in attacking an 0b10 outpost 1773 | -10/Mines | Learned location of Zion (-7) 2051 | -10/Mines | Received a Mining Laser from a helpful Derelict 2304 | -10/Mines | Entered Exiles 2304 | -10/Exiles | Accompanied by 1 ally 2331 | -10/Exiles | Met 8R-AWN 2348 | -10/Exiles | Met EX-HEX 2479 | -10/Exiles | Met EX-DEC 2564 | -10/Exiles | Met EX-BIN 2692 | -10/Exiles | Build established: Hauler-Mutant 2834 | -10/Exiles | Discovered new exit (range 10) 2847 | -10/Exiles | Entered Mines 2924 | -9/Mines | Learned location of 1 exit from Materials 2964 | -9/Mines | Assembled infested the area 2969 | -9/Mines | Assisted by a Guerilla fighting off Assembled 3077 | -9/Mines | Core integrity fell below 50% 3082 | -9/Mines | Destroyed 9 combat bots 3083 | -9/Mines | Core integrity fell below 20% 3086 | -9/Mines | Destroyed by D-53 Grenadier with Mini Grenade Launcher Last Messages --------------- 03047_ as-98031 destroyed. 03049_ Destroyed Asb. Hover Unit. 03052_ The unstable cave ceiling collapses. 03053_ as-06325 destroyed. 03055_ The unstable cave ceiling collapses. 03057_ Destroyed Asb. F-torch. 03057_ Destroyed Asb. Hover Unit. 03058_ The unstable cave ceiling collapses. 03059_ as-28698 destroyed. 03059_ as-09708 destroyed. 03059_ Destroyed Asb. Hover Unit. 03059_ Destroyed Asb. F-torch. 03061_ The unstable cave ceiling collapses. 03061_ as-75312 destroyed. 03065_ as-03309 destroyed. 03067_ The unstable cave ceiling collapses. 03080_ EM Pulse Gun destroyed. 03081_ The unstable cave ceiling collapses. 03082_ EM Pulse Gun destroyed. 03085_ The unstable cave ceiling collapses. Map ----- +----------------------------------------------------+ | ?????????????????????????????????? | | ?????????????????????????????????? | | ?????????????????????????????????? | | ?????????????????????????????????? | | ?????????????????????????????????? | | ?????????????????????????????????? | | ?????????????????????????????????? | | ?????????????????????????????????? | | ?????????????????????????????????? | | ?????????????????????????????????? | | ????????????????????? ?????????? | | ????????????????????? ????????? | | ??????????????????? ????????? | | ????????####??????? ???????? | | ????????# ##?????X ???????? | | ????????# #??### ??????? | | ????????# ##? # ???????? | | ????????# ## #????????? | | ?????#### # # # ?????? | | ?????# *?????? | | ????## d =????? | | ????# d #????? | | ???## ????? | | ???# # ????? | | ???# # ??????? | | ???## @ ##???????????? | | ????# #????????????? | | ????# # ## #????????????? | | ????## ### #????????????? | | ?????# ##?# #????????????? | | ?????# ### ##??# #####????????? | | ?????# #?# ##???# #??????#?? | | ?????# #?# ##????# ##### ##? | | ?????# ### #?????#### #? | | ?????# !% #????????# | | ?????#####/ #????????######## | | ?????????# #???????###??????? | | ?????????# #??????# ##??????? | | ?????????# #?????# #????????? | | ?????????# #???## #?????????? | | ?????????# #???# #???##????? | | ?????????# #???# #?### ####?? | | ?????????# ##?## #?## ??? | | ?????????# ### #?### #???? | | ?????????# #?## #????? | | ?????????# """ ### #?????? | | ?????????# """ #??????? | | ?????????# """ #??????? | | ?????????# #### ##?????? | | ?????????## ####??# ##????? | +----------------------------------------------------+ Best States ------------- Heat Dissipation 39 Energy Generation 10 Energy Capacity 250 Matter Stores 300 Matter Capacity 300 Sight Range 16 Terrain Scan Density 10 Evasion (%) 50 Recoil Reduction 2 Item Schematics ----------------- None Robot Schematics ------------------ None Fabricated ------------ Nothing Alien Tech Used ----------------- None Achievements -------------- None Challenges ------------ None Game ------ Seed BiomechanicalBladeRifle Manual? 0 Play Time 00:39:42 Cumulative 217.4 hours Start 2020.11.17 @ 16:08:08 End 2020.11.17 @ 20:45:12 Sessions 2 Manual Loads 0 Difficulty Rogue Special Mode Halloween2020/ForbiddenLore Game No. 78 Rogue 78 Adventurer 0 Explorer 0 Win Type - Total 2 Types 1/0/1/0/0/0/0/0/0 Lore% 66 Gallery% 78 Achievement% 67 Wizard Run 0 Options --------- ASCII 1 Keyboard 1 Movement Numpad Keybinds 0 Fullscreen 1 Font 16/SmallcapsGlow Map View 75x55 Tactical HUD 1 Map Filters NONE Filters NONE Steam 1 RUN: 6865fab0-0c0f-49da-b637-94efa30e6cfd